[Event "94th Tradewise Hastings Congress"]
[Site "Hastings"]
[Date "2019.01.01"]
[Round "5"]
[White "Sugden, John N"]
[Black "Ruane, Brendan J"]
[Result "1/2-1/2"]
[ECO "D31"]
[WhiteElo "2072"]
[BlackElo "1870"]
[Annotator "NA RC"]
[PlyCount "83"]
[EventDate "2018.12.28"]
[EventType "swiss"]
[EventCountry "ENG"]
[SourceTitle "playchess.com"]
[Source "ChessBase"]
[SourceQuality "1"]
[TimeControl "40/6000+30:3000+30"]

{[%evp 31,83,-12,32767,32767,70,85,32767,222,215,232,233,32767,209,136,155,32767,32767,160,176,193,210,206,32767,32767,32767,320,337,333,289,265,299,280,414,32767,389,441,444,311,358,372,462,462,547,589,32767,679,604,600,698,32767,32767,909,29993,29994]} 1. d4 {[%emt 0:00:00]} d5 {[%emt 0:00:00]} 2. c4 {[%emt 0:00:07]} e6 {[%emt 0:00:00]} 3. Nc3 {[%emt 0:00:21]} a6 {[%emt 0:00:02]} 4. cxd5 {[%emt 0:10:51]} exd5 {[%emt 0:00:04]} 5. Bf4 {[%emt 0:00:23] D31: Queen's Gambit Declined: Semi-Slav without ...Nf6 (+ Marshall Gambit and Noteboom) and Exchange Variation lines without ...Nf6} Nf6 {[%emt 0:00:28]} 6. e3 {[%emt 0:01:42]} Bd6 {[%emt 0:00:19]} 7. Bxd6 {[%emt 0:02:30]} (7. Bg5 Be6 8. Bd3 Nbd7 9. f4 h6 10. Bh4 g5 11. fxg5 hxg5 12. Bxg5 Rxh2 13. Rxh2 Bxh2 {1-0 (69) Yu,Y (2762)-Fedoseev,V (2707) Danzhou 2018}) 7... Qxd6 {[%emt 0:00:03]} 8. Bd3 {[%emt 0:02:43]} O-O {[%emt 0:01:56]} 9. Nf3 {[%emt 0:04:11]} Be6 $146 {[%emt 0:02:15]} 10. Qc2 {[%emt 0:03:15]} h6 {[%emt 0:01:42]} 11. O-O {[%emt 0:09:12]} Nbd7 {[%emt 0:00:24]} 12. Rac1 {[%emt 0:03:02]} Rfc8 {[%emt 0:08:13]} 13. Na4 {[%emt 0:04:05]} b6 {[%emt 0:00:03]} 14. Qe2 {[%emt 0:06:58]} Bg4 {[%emt 0:04:51]} 15. b3 {[%emt 0:10:06]} Ne4 {[%emt 0:03:16]} 16. Qc2 {[%emt 0:04:09]} (16. h3 $14 Bxf3 17. gxf3) 16... Bxf3 {[%emt 0:01:10]} 17. gxf3 {[%emt 0:00:10]} Ng5 {[%emt 0:03:44]} 18. f4 {[%emt 0:03:48]} Nh3+ {[%emt 0:04:35]} 19. Kg2 {[%emt 0:03:17]} Nxf4+ {[%emt 0:00:05]} 20. exf4 {[%emt 0:00:23]} Qxf4 {[%emt 0:00:03]} 21. Bf5 {[%emt 0:04:01]} Rd8 {[%emt 0:00:53]} 22. Bxd7 {[%emt 0:04:16]} Rxd7 {[%emt 0:00:03]} 23. Qd3 {[%emt 0:00:51]} Rd6 {[%emt 0:02:08]} 24. Nc3 {[%emt 0:09:56]} Re8 {[%emt 0:01:00]} 25. Ne2 {[%emt 0:04:15]} Qg4+ {[%emt 0:12:41]} 26. Ng3 {[%emt 0:02:05]} Rde6 {[%emt 0:00:13]} 27. Rxc7 {[%emt 0:04:07]} Rg6 {[%emt 0:09:51]} 28. Qf3 {[%emt 0:01:41]} Qe6 {[%emt 0:00:19]} 29. Qe3 {[%emt 0:03:56]} Qxe3 {[%emt 0:02:54]} 30. fxe3 {[%emt 0:00:07]} Rxe3 {[%emt 0:00:22]} 31. Rcxf7 {[%emt 0:01:05]} h5 {[%emt 0:01:39]} (31... Rd3 {was called for.} 32. R7f4 Kh7) 32. R7f4 {[%emt 0:01:17]} Rh6 {[%emt 0:02:09]} 33. R1f3 {[%emt 0:01:30]} Re1 {[%emt 0:00:26]} 34. Kf2 {[%emt 0:01:17]} Rc1 {[%emt 0:00:04]} 35. Re3 {[%emt 0:00:38]} h4 {[%emt 0:00:18]} 36. Nf5 {[%emt 0:00:33]} Rh5 {[%emt 0:01:31]} 37. Re5 {[%emt 0:01:50]} g5 {[%emt 0:00:22]} 38. Ne7+ {[%emt 0:00:59]} Kg7 {[%emt 0:00:32]} 39. Rff5 {[%emt 0:01:17]} Rc2+ {[%emt 0:01:16]} 40. Re2 {[%emt 0:00:35]} Rc3 {[%emt 0:01:07]} 41. Nxd5 {[%emt 0:50:51]} Rd3 {[%emt 0:50:33]} 42. Re7+ {[%emt 0:00:36]} 1/2-1/2

[Event "94th Tradewise Hastings Congress"]
[Site "Hastings"]
[Date "2019.01.01"]
[Round "5"]
[White "Rayner, Francis"]
[Black "Gu, In Jung"]
[Result "1/2-1/2"]
[ECO "B84"]
[WhiteElo "2048"]
[BlackElo "1794"]
[Annotator "NA RC"]
[PlyCount "222"]
[EventDate "2018.12.28"]
[EventType "swiss"]
[EventCountry "ENG"]
[SourceTitle "playchess.com"]
[Source "ChessBase"]
[SourceQuality "1"]
[TimeControl "40/6000+30:3000+30"]

{[%evp 29,218,3,0,-8,32767,32767,32767,32767,-53,-60,-52,-106,-60,-61,32767,-34,-25,-31,0,0,0,0,79,32767,14,32767,0,0,0,-17,32767,0,67,50,68,0,3,0,34,32767,46,44,81,79,99,68,100,66,122,109,161,109,240,113,117,104,106,114,104,110,125,108,120,98,108,120,110,80,118,108,104,108,104,102,102,83,104,87,109,111,111,111,32767,111,111,111,111,104,95,110,126,137,124,126,137,137,128,137,137,128,128,137,128,137,137,137,137,32767,128,134,134,139,134,129,134,129,134,130,130,130,130,132,132,104,132,127,127,127,127,117,117,127,140,127,117,0,117,125,122,122,100,138,138,119,118,118,118,118,138,106,106,106,106,106,106,106,106,106,106,128,106,-3,88,88,88,88,1510,29977,29978,1518,1345,29967,29976,29977,29977,29980,29978,29981,29981,256,37,0,29981,29982,29982,32767,0,0,0,0,0]} 1. e4 {[%emt 0:00:33]} c5 {[%emt 0:00:00]} 2. Nf3 {[%emt 0:00:33]} d6 {[%emt 0:00:00]} 3. d4 {[%emt 0:00:46]} cxd4 {[%emt 0:00:00]} 4. Nxd4 {[%emt 0:00:16]} Nf6 {[%emt 0:00:00]} 5. Nc3 {[%emt 0:00:30]} a6 {[%emt 0:00:02]} 6. Bg5 {[%emt 0:00:50]} e6 {[%emt 0:01:01]} 7. Be2 {[%emt 0:02:21]} Nbd7 {[%emt 0:01:11]} 8. O-O {[%emt 0:07:24]} Qc7 {[%emt 0:02:44]} 9. a4 {[%emt 0:09:57] B84: Sicilian Scheveningen: 6 Be2 a6, lines without early Be3} (9. Qd3 h6 10. Bd2 b5 11. b4 Ne5 12. Qg3 Nc4 13. Bc1 Nb6 14. Rd1 Bd7 15. Bb2 Nc4 16. Bxc4 Qxc4 {½-½ (55) Glazman,M (2577)-Wilczek,T (2597) ICCF email 2012}) 9... Be7 {[%emt 0:00:28]} 10. Kh1 {[%emt 0:01:31]} b6 {[%emt 0:01:08]} 11. Bd3 {[%emt 0:03:58]} Bb7 {[%emt 0:02:15]} 12. Qe2 {[%emt 0:00:46]} h6 $146 {[%emt 0:08:37]} ({Predecessor:} 12... h5 13. Rae1 h4 14. h3 Ne5 15. Nf3 {0-1 (41) Kirnos,E (2172)-Schmitz,P (2143) Germany 2015}) 13. Bd2 {[%emt 0:03:33]} Nc5 {[%emt 0:21:06]} 14. f4 {[%emt 0:05:08]} Nfd7 {[%emt 0:01:24]} 15. f5 {[%emt 0:08:42]} e5 {[%emt 0:03:42]} 16. Nf3 {[%emt 0:04:04]} Nf6 {[%emt 0:04:19]} 17. b4 {[%emt 0:02:56]} Ncd7 {[%emt 0:04:41]} 18. Bc4 {[%emt 0:07:45]} O-O {[%emt 0:05:01]} 19. Bb3 {[%emt 0:02:58]} a5 {[%emt 0:09:14]} 20. b5 {[%emt 0:04:43]} Nc5 {[%emt 0:01:13]} (20... Rfc8 $17 21. Rae1 Nc5) 21. Nd5 {[%emt 0:01:03]} Nxd5 {[%emt 0:01:15]} 22. Bxd5 {[%emt 0:00:07]} Bxd5 {[%emt 0:00:16]} 23. exd5 {[%emt 0:00:01]} Bf6 {[%emt 0:01:20]} 24. Be3 {[%emt 0:02:11]} Rac8 {[%emt 0:02:33]} 25. Nd2 {[%emt 0:02:31]} Rfe8 {[%emt 0:01:49]} (25... Nd7 $11 {remains equal.}) 26. Ra2 {[%emt 0:01:23]} Qe7 {[%emt 0:06:47]} 27. Nc4 {[%emt 0:03:09]} Qc7 {[%emt 0:05:16]} 28. Nd2 {[%emt 0:02:16]} Kf8 {[%emt 0:07:40]} 29. Qg4 {[%emt 0:02:38]} Ke7 {[%emt 0:03:33]} 30. Re1 {[%emt 0:05:33]} Kd7 {[%emt 0:03:45]} (30... Kf8 $11) 31. h3 {[%emt 0:01:57]} Qb7 {[%emt 0:00:55]} 32. Nc4 {[%emt 0:01:40]} (32. c4 $16) 32... Ke7 {[%emt 0:02:36]} 33. Rd1 {[%emt 0:00:49]} Rc7 {[%emt 0:01:39]} 34. Nd2 {[%emt 0:04:15]} Rec8 {[%emt 0:02:04]} 35. c4 {[%emt 0:02:27]} Nd7 {[%emt 0:02:16]} 36. Rc1 {[%emt 0:01:08]} Rh8 {[%emt 0:00:25]} 37. Qh5 {[%emt 0:00:56]} Rcc8 {[%emt 0:00:17]} 38. Ne4 {[%emt 0:00:57]} Rc7 {[%emt 0:03:24]} 39. Rac2 {[%emt 0:01:14]} Rhc8 {[%emt 0:00:32]} 40. Qf3 {[%emt 0:00:55]} Bg5 {[%emt 0:02:46] [#]} (40... Qb8 $16 {is a better defense.} 41. Kg1 Rb7) 41. Nxg5 {[%emt 0:55:58]} (41. f6+ $1 $18 {[%mdl 512]} Bxf6 (41... Nxf6 42. Bxg5) 42. Ng3) 41... hxg5 {[%emt 0:50:06]} 42. Bxg5+ {[%emt 0:00:04]} f6 {[%emt 0:00:00]} 43. Be3 {[%emt 0:00:00]} Rh8 {[%emt 0:00:00]} 44. Qg4 {[%emt 0:00:00]} Rh7 {[%emt 0:00:00]} 45. Qg6 {[%emt 0:00:00]} Nf8 {[%emt 0:00:00] [#]} 46. Qg3 $1 {[%emt 0:00:00]} Nd7 {[%emt 0:00:00]} 47. Qf2 {[%emt 0:00:00]} Rc8 {[%emt 0:00:00]} 48. Qf3 {[%emt 0:00:00]} Nc5 {[%emt 0:00:00]} 49. Bxc5 {[%emt 0:00:00]} Rxc5 {[%emt 0:00:00]} 50. Re2 {[%emt 0:00:00]} Rc8 {[%emt 0:00:00]} 51. Re4 {[%emt 0:00:00]} Qc7 {[%emt 0:00:00]} 52. Qf2 {[%emt 0:00:00]} Rch8 {[%emt 0:00:00]} 53. Rg4 {[%emt 0:00:00]} Kf8 {[%emt 0:00:00]} 54. Rc3 {[%emt 0:00:00]} Rh5 {[%emt 0:00:00]} 55. Rcg3 {[%emt 0:00:00]} R5h7 {[%emt 0:00:00]} 56. Kh2 {[%emt 0:00:00]} Ke8 {[%emt 0:00:00]} 57. Rf3 {[%emt 0:00:00]} Kf8 {[%emt 0:00:00]} 58. h4 {[%emt 0:00:00]} Ke8 {[%emt 0:00:00]} 59. Rh3 {[%emt 0:00:00]} Kf8 {[%emt 0:00:00]} 60. Re4 {[%emt 0:00:00]} Ke8 {[%emt 0:00:00]} 61. g4 {[%emt 0:00:00]} Kd8 {[%emt 0:00:00]} 62. Kg3 {[%emt 0:00:00]} Kc8 {[%emt 0:00:00]} 63. Qe3 {[%emt 0:00:00]} Qd8 {[%emt 0:00:00]} 64. Rh2 {[%emt 0:00:00]} Kb7 {[%emt 0:00:00]} 65. h5 {[%emt 0:00:00]} Qc7 {[%emt 0:00:00]} 66. Rc2 {[%emt 0:00:00]} Rc8 {[%emt 0:00:00]} 67. Kf3 {[%emt 0:00:00]} Qd7 {[%emt 0:00:00]} 68. Qf2 {[%emt 0:00:00]} Rch8 {[%emt 0:00:00]} 69. Ke2 {[%emt 0:00:00]} Qc8 {[%emt 0:00:00]} 70. Kd3 {[%emt 0:00:00]} Qc7 {[%emt 0:00:00]} 71. Kc3 {[%emt 0:00:00]} Rc8 {[%emt 0:00:00]} 72. Kb3 {[%emt 0:00:00]} Rch8 {[%emt 0:00:00]} 73. Rc3 {[%emt 0:00:00]} Rc8 {[%emt 0:00:00]} 74. Re1 {[%emt 0:00:00]} Rch8 {[%emt 0:00:00]} 75. Qe3 {[%emt 0:00:00]} Rh6 {[%emt 0:00:00]} 76. Rh1 {[%emt 0:00:00]} R6h7 {[%emt 0:00:05]} 77. Rh3 {[%emt 0:00:00]} Ka7 {[%emt 0:00:30]} 78. Rc2 {[%emt 0:00:00]} Kb7 {[%emt 0:00:10]} 79. Rh4 {[%emt 0:00:00]} Ka7 {[%emt 0:00:29]} 80. Rhh2 {[%emt 0:00:00]} Kb7 $1 {[%emt 0:00:05]} 81. Rhd2 {[%emt 0:00:00]} Rc8 {[%emt 0:00:24]} 82. Rh2 {[%emt 0:00:22]} (82. Rc3 $16) 82... Rch8 {[%emt 0:00:06]} 83. Qg1 {[%emt 0:01:03]} Rh6 {[%emt 0:00:55]} 84. Rhg2 {[%emt 0:00:37]} Rf8 {[%emt 0:10:11]} 85. Rc3 {[%emt 0:00:59]} Rh7 {[%emt 0:01:51]} 86. Rcg3 {[%emt 0:01:36]} Rc8 {[%emt 0:00:13]} 87. Rc2 {[%emt 0:00:26]} Rf8 {[%emt 0:00:17]} 88. Rcc3 {[%emt 0:01:11]} Ka7 {[%emt 0:00:38]} 89. Rh3 {[%emt 0:04:14]} Rfh8 {[%emt 0:00:21]} 90. Rh4 {[%emt 0:00:07]} Kb7 {[%emt 0:00:52]} 91. Rg3 {[%emt 0:00:14]} Qc8 {[%emt 0:02:06]} 92. Qe3 {[%emt 0:01:19]} Qd7 {[%emt 0:01:32]} 93. Qf3 {[%emt 0:01:13]} Qc7 {[%emt 0:00:47]} 94. Qf2 {[%emt 0:01:02]} Rc8 {[%emt 0:00:27]} 95. g5 {[%emt 0:01:08]} (95. Rc3 $16) 95... Rf8 {[%emt 0:05:26]} (95... Rxh5 $1 $11 96. Rgg4 (96. Rxh5 $2 Qxc4+ 97. Ka3 Qb4+ 98. Ka2 Qxa4+ 99. Kb2 Qd1 $17) 96... Rxg5) 96. gxf6 {[%emt 0:01:32]} Rxf6 {[%emt 0:00:22]} 97. Rhg4 {[%emt 0:01:05]} Rxh5 $2 {[%emt 0:00:50]} (97... Rf7 $16) 98. Rxg7 {[%emt 0:00:16]} Rf7 {[%emt 0:00:04]} 99. f6 {[%emt 0:00:31]} (99. Rxf7 $142 Qxf7 100. f6 Qf8 101. Rg7+ Ka8 102. Qg3 (102. Qxb6 Rh3+ 103. Kc2 Rh2+ 104. Kd1 Rh1+ 105. Kc2 Rh2+ 106. Kb1 Rh1+ 107. Rg1 Rxg1+ 108. Qxg1 Qxf6 $16) 102... Qxf6 103. Rg6 Qf7 104. Rg8+ Kb7 105. Rg7) 99... Rh7 {[%emt 0:00:53]} 100. Qg1 {[%emt 0:01:48]} Qd7 {[%emt 0:00:32]} 101. Rxh7 {[%emt 0:00:42]} Rxh7 {[%emt 0:00:13]} 102. Rg7 {[%emt 0:00:13] Trapped Piece} Rxg7 {[%emt 0:00:07]} 103. Qxg7 {[%emt 0:01:49]} Kc8 $1 {[%emt 0:00:19]} 104. Qg8+ $2 {[%emt 0:03:45]} Kc7 {[%emt 0:00:29]} 105. Qg7 {[%emt 0:01:23]} Kc8 {[%emt 0:00:46]} 106. f7 {[%emt 0:00:42] mates} Qh3+ {[%emt 0:00:06]} 107. Kc2 {[%emt 0:00:31]} (107. Kb2 Qh2+ 108. Kc3 Qh3+ 109. Kd2 Qh2+ 110. Kd3 Qh3+ 111. Ke4 Qh1+ 112. Kf5 Qh3+ 113. Kg6) 107... Qf5+ {[%emt 0:00:19]} 108. Kd2 {[%emt 0:00:14]} Qf2+ {[%emt 0:00:08]} 109. Kd1 {[%emt 0:02:52]} Qf1+ $11 {[%emt 0:00:06]} 110. Kd2 {[%emt 0:01:06]} Qf2+ {[%emt 0:00:04]} 111. Kd1 {[%emt 0:01:10]} Kc7 {[%emt 0:00:14]} 1/2-1/2

[Event "94th Tradewise Hastings Congress"]
[Site "Hastings"]
[Date "2019.01.01"]
[Round "5"]
[White "Larsen, Andreas"]
[Black "Willson, Ollie"]
[Result "1/2-1/2"]
[ECO "B20"]
[WhiteElo "1933"]
[BlackElo "2081"]
[Annotator "NA RC"]
[PlyCount "95"]
[EventDate "2018.12.28"]
[EventType "swiss"]
[EventCountry "ENG"]
[SourceTitle "playchess.com"]
[Source "ChessBase"]
[SourceQuality "1"]
[TimeControl "40/6000+30:3000+30"]

{[%evp 22,95,-5,32767,32767,-26,410,32767,32767,91,547,32767,32767,-27,32767,-5,0,-158,-168,-165,-149,-191,-200,-211,0,-395,32767,32767,32767,-404,0,0,0,0,66,39,18,70,51,55,145,134,324,432,381,496,514,427,495,196,185,201,302,0,202,278,246,297,328,212,224,0,0,0,8,8,314,0,0,0,0,0,0,0,0,0]} 1. e4 {[%emt 0:00:00]} c5 {[%emt 0:00:00]} 2. b4 {[%emt 0:01:19]} cxb4 {[%emt 0:00:47]} 3. a3 {[%emt 0:01:01]} e6 {[%emt 0:07:13]} 4. axb4 {[%emt 0:00:10]} Bxb4 {[%emt 0:00:04]} 5. c3 {[%emt 0:00:25]} Be7 {[%emt 0:00:05]} 6. d4 {[%emt 0:01:51]} Nf6 {[%emt 0:02:15]} 7. Bd3 {[%emt 0:01:15]} Nc6 {[%emt 0:09:20]} 8. Nf3 {[%emt 0:14:34]} d6 {[%emt 0:01:40]} 9. Na3 {[%emt 0:03:36] B20: Sicilian: Unusual White 2nd moves} (9. O-O e5 10. Nbd2 O-O 11. h3 b6 12. Re1 Bb7 13. Nc4 Re8 14. Ne3 Bf8 15. Nf5 exd4 16. cxd4 Nb4 {1-0 (34) Dimitrov,P (2304)-Spasov,V (2581) Sunny Beach 2012}) 9... O-O {[%emt 0:03:57]} 10. Nc4 $146 {[%emt 0:08:34]} ({Predecessor:} 10. O-O e5 11. d5 Na5 12. c4 b6 13. c5 bxc5 14. Bd2 c4 15. Bxa5 Qxa5 16. Nxc4 Qd8 {0-1 (35) Bezgodova,S (2253)-Ivakhinova,I (2216) Obninsk 2007}) 10... d5 {[%emt 0:02:01]} 11. Ncd2 {[%emt 0:01:53]} Ne8 {[%emt 0:34:54]} (11... dxe4 $17 12. Nxe4 Nd5) 12. h4 {[%emt 0:11:13]} dxe4 {[%emt 0:07:25]} 13. Nxe4 {[%emt 0:07:12]} Nf6 $2 {[%emt 0:11:00]} (13... h6 $15) 14. Nxf6+ {[%emt 0:05:36]} gxf6 {[%emt 0:00:53] [#]} 15. Bh6 $2 {[%emt 0:08:03]} (15. Ng5 $1 $18 {[%mdl 512] and the rest is easy.} fxg5 16. hxg5) 15... Re8 $2 {[%emt 0:07:26]} (15... f5 $16) 16. Nh2 {[%emt 0:15:58]} f5 {[%emt 0:00:57]} 17. Nf3 {[%emt 0:09:02]} Bf6 {[%emt 0:01:37]} 18. Ng5 {[%emt 0:05:32]} e5 {[%emt 0:05:39]} 19. Bc4 $2 {[%emt 0:01:03]} (19. Qh5 $11 Bxg5 20. Bxg5 exd4+ {[%mdl 64] Discovered Attack} 21. Kf1) 19... exd4+ {[%emt 0:00:17]} 20. Kf1 {[%emt 0:00:05]} Be6 {[%emt 0:02:00]} ({Not} 20... dxc3 $2 21. Qh5 $18) 21. Bxe6 {[%emt 0:02:30]} fxe6 {[%emt 0:00:03]} 22. Rh3 {[%emt 0:00:20] [#]} Ne5 $2 {[%emt 0:02:14]} (22... Re7 $1 $19 23. Rg3 Kh8 24. cxd4 Qxd4 25. Qxd4 Nxd4) 23. Nxh7 $2 {[%emt 0:00:44]} (23. Rg3 $1 $11 {and White has nothing to worry.} Ng4 24. Rxg4 fxg4 25. Qxg4) 23... Kxh7 {[%emt 0:02:27]} 24. Qh5 {[%emt 0:00:13]} Ng4 {[%emt 0:00:51]} 25. Rg3 {[%emt 0:02:55] [#]} Qd7 $2 {[%emt 0:02:18]} ({Better is} 25... Rh8 $1 $19 26. f3 Qe8 27. fxg4 Be5) 26. Rxg4 {[%emt 0:01:33]} fxg4 {[%emt 0:00:56]} 27. Bg5+ {[%emt 0:00:15]} Kg8 {[%emt 0:00:17]} (27... Kg7 $11 28. Qh6+ {[%mdl 64] Double Attack} Kg8 29. Bxf6 Qh7 30. Qg5+ {[%mdl 64] Double Attack} Kf7 31. Bxd4 e5 32. Bxe5 Qg6 33. Qf4+ Kg8) 28. Bxf6 {[%emt 0:00:12]} Qh7 {[%emt 0:01:00]} 29. Qxg4+ {[%emt 0:00:24]} Kf7 $1 {[%emt 0:00:06]} 30. Bxd4 {[%emt 0:00:39]} Qd3+ {[%emt 0:01:41]} (30... Re7 $14) 31. Kg1 {[%emt 0:00:16]} Rg8 $2 {[%emt 0:02:04]} (31... e5 $16) 32. Qh5+ {[%emt 0:00:14]} Qg6 {[%emt 0:00:55]} 33. Qf3+ {[%emt 0:00:04] Double Attack} Qf5 {[%emt 0:00:28]} 34. Qxb7+ {[%emt 0:00:13] Double Attack} Kg6 {[%emt 0:00:29]} 35. Rxa7 $2 {[%emt 0:00:31]} (35. Ra6 Kh6 36. Be3+ (36. Bxa7 Rad8 $18) 36... Kh5 {[#]} 37. Rxe6 $1 {[%mdl 512]}) 35... Rxa7 {[%emt 0:00:24]} 36. Qxa7 {[%emt 0:00:05]} Kh5 {[%emt 0:01:22] [#]} (36... e5 {keeps fighting.}) 37. Qe7 $2 {[%emt 0:00:37]} (37. f3 $1 $18) 37... Qb1+ $2 {[%emt 0:00:49]} (37... Rxg2+ $1 $11 38. Kxg2 Qg4+ 39. Kf1 Qd1+ 40. Kg2 Qg4+ 41. Kh1 Qh3+ 42. Kg1 Qg4+ 43. Kh2 Qf4+ 44. Kh1 Qf3+ 45. Kg1 Qg4+ 46. Kf1 Qd1+ 47. Kg2 Qg4+) 38. Kh2 {[%emt 0:00:09]} Qf5 {[%emt 0:00:29]} 39. g3 {[%emt 0:00:36]} Kg4 {[%emt 0:00:28]} 40. Be3 {[%emt 0:00:46]} Rb8 {[%emt 0:00:35]} 41. Qg5+ $2 {[%emt 0:53:35]} ({White should play} 41. c4 $18) 41... Qxg5 {[%emt 0:50:14]} 42. Bxg5 {[%emt 0:00:25]} Kf3 {[%emt 0:00:00]} 43. Be3 {[%emt 0:00:00]} Rc8 $2 {[%emt 0:00:00] [#]} (43... e5 $11) 44. h5 $2 {[%emt 0:00:00]} (44. Kh3 $1 $18) 44... Kg4 $1 {[%emt 0:00:00]} 45. h6 {[%emt 0:00:00]} e5 $1 {[%emt 0:00:00]} 46. Bd2 {[%emt 0:00:00]} Rd8 {[%emt 0:00:00]} 47. Be3 {[%emt 0:00:00]} Rc8 {[%emt 0:00:00]} 48. Bd2 $11 {[%emt 0:00:00]} 1/2-1/2

[Event "94th Tradewise Hastings Congress"]
[Site "Hastings"]
[Date "2019.01.01"]
[Round "5"]
[White "Faulks, Nick"]
[Black "Miller, Dominic"]
[Result "0-1"]
[ECO "C18"]
[WhiteElo "1917"]
[BlackElo "2061"]
[Annotator "NA RC"]
[PlyCount "46"]
[EventDate "2018.12.28"]
[EventType "swiss"]
[EventCountry "ENG"]
[SourceTitle "playchess.com"]
[Source "ChessBase"]
[SourceQuality "1"]
[TimeControl "40/6000+30:3000+30"]

1. e4 {[%emt 0:00:00]} e6 {[%emt 0:00:00]} 2. d4 {[%emt 0:00:00]} d5 {[%emt 0:00:00]} 3. Nc3 {[%emt 0:00:00]} Bb4 {[%emt 0:00:00]} 4. e5 {[%emt 0:00:11]} Ne7 {[%emt 0:01:10]} 5. a3 {[%emt 0:00:21]} Bxc3+ {[%emt 0:00:07]} 6. bxc3 {[%emt 0:00:04]} c5 {[%emt 0:00:04]} 7. h4 {[%emt 0:00:44]} Qa5 {[%emt 0:00:27]} 8. Bd2 {[%emt 0:01:09]} Qa4 {[%emt 0:00:06]} 9. h5 {[%emt 0:06:14] C18: French: 3 Nc3 Bb4: Main line: 7 h4 and 7 Qg4} b6 {[%emt 0:01:00]} 10. h6 {[%emt 0:12:31]} gxh6 {[%emt 0:03:06]} 11. Nf3 {[%emt 0:00:44]} Ba6 {[%emt 0:00:22]} 12. Bxa6 {[%emt 0:01:56]} Nxa6 {[%emt 0:03:40]} 13. Rxh6 $146 {[%emt 0:06:19]} ({Predecessor:} 13. Bxh6 cxd4 14. Nxd4 Rc8 15. Qf3 Nc5 16. Bg7 Rg8 17. Rxh7 {1-0 (33) Smirin,I (2644)-Berg,E (2549) Minsk 2014}) 13... cxd4 {[%emt 0:21:26]} 14. Nxd4 {[%emt 0:10:49]} Nf5 {[%emt 0:18:04]} (14... Nc5 $11 {keeps the balance.}) 15. Nxf5 {[%emt 0:16:41]} exf5 {[%emt 0:00:06]} 16. Bg5 {[%emt 0:01:18]} Qe4+ {[%emt 0:04:32]} 17. Kf1 {[%emt 0:01:08]} Nc7 $2 {[%emt 0:08:09] [#]} ({But not} 17... Rg8 $2 18. Qh5 $18) (17... Qc4+ $16 {was necessary.} 18. Kg1 Nc5) 18. Rh4 $1 {[%emt 0:02:56]} Qxe5 {[%emt 0:02:26]} 19. Bf4 $2 {[%emt 0:07:09]} (19. Qd3 $18 {is more deadly.} O-O 20. Bf4) 19... Qe7 {[%emt 0:02:37]} 20. Qh5 {[%emt 0:07:00]} O-O-O {[%emt 0:00:20]} 21. Re1 {[%emt 0:02:31]} Ne6 {[%emt 0:00:44]} 22. Be5 {[%emt 0:05:42]} ({White should play} 22. Bg3 $16) 22... Rhg8 $14 {[%emt 0:11:34]} 23. Qe2 {[%emt 0:08:09]} Qxh4 {[%emt 0:00:52]} 0-1

[Event "94th Tradewise Hastings Congress"]
[Site "Hastings"]
[Date "2019.01.01"]
[Round "5"]
[White "Graham, Cassie M"]
[Black "Ratnesan, Ranesh"]
[Result "1/2-1/2"]
[ECO "B23"]
[WhiteElo "1889"]
[BlackElo "2055"]
[Annotator "NA RC"]
[PlyCount "90"]
[EventDate "2018.12.28"]
[EventType "swiss"]
[EventCountry "ENG"]
[SourceTitle "playchess.com"]
[Source "ChessBase"]
[SourceQuality "1"]
[TimeControl "40/6000+30:3000+30"]

{[%evp 38,85,7,0,10,5,0,0,0,-54,-41,-68,-47,-36,-30,-2,32767,32767,-22,0,0,0,26,21,33,12,17,0,0,-22,6,-59,50,0,0,0,37,44,50,26,12,20,14,8,43,28,70,100,175,212]} 1. e4 {[%emt 0:00:00]} c5 {[%emt 0:00:00]} 2. Nc3 {[%emt 0:00:00]} Nc6 {[%emt 0:00:00]} 3. f4 {[%emt 0:00:00]} g6 {[%emt 0:00:00]} 4. Nf3 {[%emt 0:00:00]} Bg7 {[%emt 0:00:05]} 5. Bc4 {[%emt 0:00:00]} e6 {[%emt 0:00:24]} 6. f5 {[%emt 0:00:00]} Nge7 {[%emt 0:00:39]} 7. fxe6 {[%emt 0:00:02]} dxe6 {[%emt 0:00:07]} 8. d3 {[%emt 0:00:05]} O-O {[%emt 0:00:11]} 9. O-O {[%emt 0:00:04]} Na5 {[%emt 0:00:47]} 10. Qe1 {[%emt 0:02:18]} Nxc4 {[%emt 0:01:59]} 11. dxc4 {[%emt 0:00:04]} Nc6 {[%emt 0:06:03] B23: Closed Sicilian: Lines without g3} 12. Bg5 {[%emt 0:08:27]} f6 {[%emt 0:04:16]} 13. Be3 {[%emt 0:01:06]} b6 {[%emt 0:01:51]} 14. Rd1 {[%emt 0:01:11]} Qe7 {[%emt 0:05:05]} 15. Qg3 $146 {[%emt 0:05:17]} ({Predecessor:} 15. Bf4 Rd8 16. Rxd8+ Qxd8 17. Qf2 Ba6 {½-½ (73) Kind,B (2170)-Wessendorf,T (2225) Germany 2015}) 15... Bb7 {[%emt 0:05:08]} 16. Bf4 {[%emt 0:11:07]} e5 {[%emt 0:10:39]} 17. Nd5 {[%emt 0:00:55]} Qf7 {[%emt 0:00:54]} 18. Bd2 {[%emt 0:14:44]} Rad8 {[%emt 0:07:58]} 19. Qh4 {[%emt 0:09:03]} Qe6 {[%emt 0:03:59]} 20. b3 {[%emt 0:03:46]} Rd7 {[%emt 0:02:55]} 21. Rde1 {[%emt 0:15:21]} Nd8 {[%emt 0:02:31]} 22. Bc3 {[%emt 0:02:25]} Nf7 {[%emt 0:04:15]} 23. Qg3 {[%emt 0:01:24] [#]} b5 $1 {[%emt 0:13:07]} 24. h4 {[%emt 0:10:59]} bxc4 {[%emt 0:02:21]} (24... Nd6 $5 {[%cal Rb5c4]} 25. Nd2 Rdf7 $17) 25. bxc4 {[%emt 0:00:04]} Ba6 {[%emt 0:05:34]} 26. Nd2 {[%emt 0:02:06]} Nd6 {[%emt 0:02:19]} 27. h5 {[%emt 0:00:58]} Nxc4 {[%emt 0:05:12]} 28. Nb3 $1 {[%emt 0:00:29]} Qc6 {[%emt 0:08:53]} 29. hxg6 {[%emt 0:00:12]} hxg6 {[%emt 0:00:36]} 30. Qxg6 {[%emt 0:00:50]} Nb6 $1 {[%emt 0:01:20]} 31. Nxb6 {[%emt 0:03:07]} Qxb6 {[%emt 0:01:56]} 32. Ba5 {[%emt 0:04:28]} Qb5 {[%emt 0:01:20]} 33. c4 {[%emt 0:04:53]} Qc6 {[%emt 0:00:44]} 34. Rc1 {[%emt 0:00:24]} (34. Rf3 $11) 34... Rd3 {[%emt 0:01:29]} ({Better is} 34... Rd6 $15 35. Qg4 Bc8) 35. Rf3 {[%emt 0:01:29]} Rxf3 {[%emt 0:04:25]} 36. gxf3 {[%emt 0:00:05]} Qa4 {[%emt 0:03:04]} 37. Bd2 {[%emt 0:06:48]} Bxc4 {[%emt 0:03:11]} 38. Bh6 {[%emt 0:00:25]} Rf7 {[%emt 0:00:13]} 39. Nxc5 {[%emt 0:00:21]} Qb5 {[%emt 0:00:50]} 40. Nb3 {[%emt 0:00:29]} Kf8 {[%emt 0:03:01]} 41. Be3 {[%emt 0:53:04]} Rc7 {[%emt 0:09:49] [#]} 42. Qg2 $1 {[%emt 0:00:00]} a6 {[%emt 0:07:20]} (42... Kf7 $16 {keeps fighting.}) 43. Nd2 $18 {[%emt 0:00:00]} Rc6 {[%emt 0:03:36]} 44. Nxc4 {[%emt 0:00:00]} Rxc4 {[%emt 0:00:06]} 45. Rxc4 {[%emt 0:00:00]} Qxc4 {[%emt 0:00:14]} 1/2-1/2